bitfinex/quotes_SOLUSD_20250422
["timestamp","ask_amount","ask_price","bid_price","bid_amount"]
[1745358579371,34.26262482,148.0,147.81,21.0]
[1745358579668,0.9,148.0,147.86,26.0]
[1745358579875,0.9,148.0,147.87,1.23660744]
[1745358580090,0.9,148.0,147.89,1.0]
[1745358580253,0.9,148.0,147.89,10.34522799]
[1745358580447,0.9,148.0,147.9,12.62806899]
[1745358580648,0.03,147.99,147.87,9.08022912]
[1745358580872,0.03,147.99,147.88,10.99320581]
[1745358581058,0.03,147.99,147.89,1.23644021]
[1745358581385,0.03,147.99,147.9,1.0]
[1745358581386,0.2008546,147.99,147.9,1.0]
[1745358581553,47.19246303,147.98,147.89,21.79091004]
[1745358581750,0.2008546,147.99,147.91,1.23627302]
[1745358582482,0.2008546,147.99,147.9,1.0]
[1745358582663,0.2008546,147.99,147.91,1.23627302]
[1745358583173,20.0,148.29,147.92,20.13022761]
[1745358583353,33.93789828,148.39,148.14,1.0]
[1745358583560,1.5242,148.31,148.08,9.07006261]
[1745358583863,33.82404147,148.44,148.25,1.0]
[1745358584165,20.0,148.4,148.22,1.0]
[1745358584367,20.0,148.4,148.13,1.0]
[1745358584673,1.0,148.45,148.24,20.0]
[1745358584885,1.0,148.45,148.24,1.0]
[1745358585052,1.0,148.45,148.2,9.79593747]
[1745358585053,1.0,148.45,148.25,10.63148772]
[1745358585254,1.0,148.45,148.31,1.0]
[1745358585462,1.0,148.45,148.4,1.0]
[1745358585662,1.0,148.45,148.33,1.0]
[1745358585861,1.0,148.45,148.34,9.39805]
[1745358586176,1.0,148.45,148.37,1.0]
[1745358586378,1.0442338,148.53,148.47,20.0]
[1745358586563,1.0442338,148.53,148.48,1.23152709]
[1745358586766,1.0442338,148.53,148.48,21.23152709]
[1745358586973,1.0442338,148.53,148.52,20.0]
[1745358587177,0.92017231,148.55,148.52,20.0]
[1745358587178,0.28,148.75,148.74,20.0]
[1745358587371,0.28,148.75,148.74,21.22937436]
[1745358587561,0.28,148.75,148.74,1.22937436]
[1745358588182,0.28,148.75,148.6,20.0]
[1745358588389,0.28,148.75,148.61,1.23044978]
[1745358588754,0.28,148.75,148.62,8.37839683]
[1745358588959,6.72314105,148.74,148.64,20.0]
[1745358589184,0.28,148.75,148.65,1.23011868]
[1745358589391,7.00305922,148.75,148.47,20.0]
[1745358589587,23.8097819,148.75,148.51,1.0]
[1745358589790,57.42322727,148.75,148.52,1.23119541]
[1745358589978,57.42322727,148.75,148.46,20.0]
[1745358590170,57.42322727,148.75,148.48,1.0]
[1745358590381,57.42322727,148.75,148.49,1.0]
[1745358590580,6.5777,148.74,148.45,1.0]
[1745358590764,1.5242,148.6,148.36,1.0]
[1745358591090,6.5777,148.58,148.3,1.0]
[1745358591396,6.5777,148.38,148.14,1.0]
[1745358591765,6.5777,148.38,148.21,1.0]
[1745358591960,6.72902227,148.61,148.4,1.0]
[1745358592161,6.72902227,148.61,148.42,1.0]
[1745358592364,70.26949816,148.61,148.38,1.0]
[1745358592589,231.46,148.6,148.39,0.063]
[1745358592890,21.24915218,148.59,148.39,0.063]
[1745358593098,20.0,148.57,148.39,0.063]
[1745358593270,46.71792021,148.54,148.39,0.063]
[1745358593468,20.0,148.55,148.39,0.063]
[1745358593670,20.0,148.52,148.39,0.063]
[1745358593882,1.5242,148.56,147.12,0.99]
[1745358593883,43.56902356,148.5,148.23,1.0]
[1745358594166,43.56902356,148.5,148.19,46.71792021]
[1745358594167,46.71792021,148.4,148.22,1.0]
[1745358594396,46.71792021,148.4,148.19,1.0]
[1745358594566,1.5242,148.39,148.15,1.0]
[1745358594767,1.24915218,148.49,148.15,1.0]
[1745358594768,231.28,148.52,148.15,3.1327014]
[1745358594992,33.57791058,148.57,148.15,3.1327014]
[1745358594993,20.0,148.41,148.15,3.1327014]
[1745358595184,46.71792021,148.4,148.15,3.1327014]
[1745358595502,20.0,148.41,148.15,3.1327014]
[1745358595673,20.0,148.35,148.15,3.1327014]
[1745358595873,20.0,148.35,148.13,231.28]
[1745358596080,46.71792021,148.26,148.09,1.0442338]
[1745358596289,20.0,148.27,148.09,1.0442338]
[1745358596592,20.0,148.23,148.03,231.32]
[1745358596798,66.71792021,148.19,148.03,231.32]
[1745358596981,20.0,148.21,148.03,231.32]
[1745358597195,81.69209881,148.26,148.03,231.32]
[1745358597397,33.72502642,148.26,148.03,232.32]
[1745358597577,33.72502642,148.26,148.03,231.32]
[1745358597785,8.1019,148.25,148.03,232.32]
[1745358598027,8.1019,148.25,148.05,1.0]
[1745358598189,8.1019,148.25,148.21,46.71792021]
[1745358598190,6.74581759,148.24,148.21,46.71792021]
[1745358598377,23.5929098,148.35,148.18,231.32]
[1745358598575,6.74081563,148.35,148.22,1.0]
[1745358598778,6.74081563,148.35,148.26,1.0]
[1745358598987,33.52712492,148.53,148.19,47.95185733]
[1745358598988,6.5777,148.52,148.22,1.0]
[1745358599194,6.5777,148.52,148.34,1.0]
[1745358599417,6.5777,148.52,148.36,1.0]
[1745358599603,6.5777,148.52,148.4,1.0]
[1745358599912,57.17745188,148.66,148.4,1.0]
[1745358600222,71.02664312,148.61,148.38,0.0744769]
[1745358600398,51.02664312,148.5,148.37,232.36]
[1745358600712,26.0,148.54,148.38,0.05407988]
[1745358600922,20.0,148.57,148.37,231.36]
[1745358601136,26.0,148.47,148.37,231.36]
[1745358601419,77.02664312,148.5,148.37,158.96465112]
[1745358601581,51.02664312,148.5,148.26,231.36]
[1745358601794,49.33500049,148.34,148.26,231.36]
[1745358601989,25.39228253,148.31,148.18,1.0]
[1745358602211,18.64964886,148.27,148.14,1.0]
[1745358602419,18.64964886,148.21,148.11,1.0]
[1745358602630,18.64964886,148.21,148.09,1.0]
[1745358602834,49.33500049,148.2,148.11,1.0]
[1745358603016,26.0,148.18,148.08,1.0]
[1745358603320,18.64964886,148.17,148.08,1.0]
[1745358603528,18.64964886,148.17,148.05,231.3]
[1745358603529,18.64964886,148.13,148.05,231.3]
[1745358603716,75.33500049,148.1,148.05,231.3]
[1745358604017,67.98464935,148.07,148.05,231.3]
[1745358604225,26.0,148.05,147.95,231.3]
[1745358604533,25.39819792,148.18,147.98,1.0]
[1745358604696,25.39819792,148.18,148.02,1.0]
[1745358604899,18.64964886,148.14,148.02,1.0]
[1745358605112,26.0,148.11,147.95,1.23593878]
[1745358605333,18.64964886,148.06,147.95,1.23593878]
[1745358605620,18.64964886,148.14,147.95,1.23593878]
[1745358605806,18.64964886,148.12,147.95,1e-08]
[1745358606135,18.64964886,148.1,147.88,1.0]
[1745358606296,49.33500049,147.92,147.88,1.0]
[1745358606500,18.64964886,148.07,147.84,1.0]
[1745358606715,18.64964886,148.05,147.83,231.42]
[1745358606905,1.24915218,148.04,147.83,231.42]
[1745358607116,18.64964886,148.03,147.83,231.42]
[1745358607300,18.64964886,148.01,147.84,1.0]
[1745358607623,26.0,147.99,147.91,1.0]
[1745358607798,18.64964886,147.98,147.88,1.0]
[1745358608002,18.64964886,147.92,147.83,231.42]
[1745358608305,32.75875441,147.96,147.83,231.42]
[1745358608515,8.00709647,147.98,147.89,1.0]
[1745358608822,6.75447483,148.05,147.92,1.0]
[1745358609030,6.75447483,148.05,147.99,1.0]
[1745358609198,14.85315579,148.13,147.99,1.0]
[1745358609398,31.73022323,148.13,148.01,1.0]
[1745358609728,31.73022323,148.13,148.0,1.0]
[1745358609729,49.58725464,148.08,148.0,1.0]
[1745358609899,6.7535625,148.07,147.97,232.58]
[1745358610095,6.7535625,148.07,147.97,231.58]
[1745358610524,6.75128274,148.12,148.05,1.0]
[1745358610706,6.74718305,148.21,148.1,1.0]
[1745358610908,49.58725464,148.18,148.1,50.58725464]
[1745358611108,16.8707875,148.19,148.11,1.0]
[1745358611405,6.74718305,148.21,148.05,1.0]
[1745358611609,1.0,148.11,147.79,1.0]
[1745358611823,1.0,148.01,147.76,231.58]
[1745358612008,26.0,147.96,147.69,1.0]
[1745358612325,57.43631325,147.99,147.8,232.6242338]
[1745358612528,18.64964886,147.98,147.8,232.6242338]
[1745358612822,26.0,147.93,147.8,232.6242338]
[1745358613046,23.65024663,147.99,147.8,232.6242338]
[1745358613202,57.43631325,147.99,147.8,232.6242338]
[1745358613530,18.64964886,147.94,147.8,232.6242338]
[1745358613711,49.58725464,147.86,147.8,232.6242338]
[1745358613911,6.76223965,147.88,147.8,232.6242338]
[1745358614313,49.58725464,147.86,147.8,232.6242338]
[1745358614906,6.76223965,147.88,147.8,232.6242338]
[1745358615425,42.90178314,147.92,147.8,232.6242338]
[1745358615426,6.76151308,147.9,147.8,232.6242338]
[1745358615633,6.75904021,147.95,147.81,26.0]
[1745358615817,18.64964886,147.94,147.8,258.6242338]
[1745358616015,6.75995403,147.93,147.8,258.6242338]
[1745358616430,6.75995403,147.93,147.8,232.6242338]
[1745358616631,6.75941772,147.95,147.83,26.0]
[1745358616842,6.75675675,148.0,147.84,26.0]
[1745358617044,6.75675675,148.0,147.85,18.64964886]
[1745358617341,49.58725464,147.92,147.8,232.6242338]
[1745358617519,18.64964886,147.99,147.8,258.6242338]
[1745358617833,18.64964886,147.98,147.8,232.6242338]
[1745358618031,91.90154175,147.9,147.81,49.58725464]
[1745358618225,18.64964886,147.84,147.8,232.6242338]
[1745358618442,18.64964886,147.82,147.8,1.0442338]
[1745358618618,44.64964886,147.82,147.68,231.74]
[1745358618935,49.58725464,147.76,147.68,231.74]
[1745358619146,1.24915218,147.82,147.68,231.74]
[1745358619332,26.0,147.74,147.66,49.58725464]
[1745358619516,18.64964886,147.77,147.59,26.0]
[1745358619517,44.64964886,147.77,147.59,26.0]
[1745358619716,44.64964886,147.77,147.56,231.74]
[1745358619942,26.0,147.74,147.56,231.74]
[1745358620125,6.76956404,147.72,147.56,231.74]
[1745358620434,18.64964886,147.71,147.56,231.74]
[1745358620854,23.69347414,147.72,147.56,231.74]
[1745358621020,6.76956404,147.72,147.56,232.74]
[1745358621221,6.76956404,147.72,147.56,231.74]
[1745358621431,18.64964886,147.71,147.56,231.74]
[1745358621641,6.76956404,147.72,147.56,231.74]
[1745358621839,23.69347414,147.72,147.64,49.58725464]
[1745358622045,23.69347414,147.72,147.61,26.0]
[1745358622228,26.0,147.7,147.56,231.74]
[1745358622427,23.69347414,147.72,147.57,18.64964886]
[1745358622622,6.76956404,147.72,147.57,18.64964886]
[1745358622823,6.76773145,147.76,147.6,27.0]
[1745358623024,23.67971283,147.81,147.66,26.0]
[1745358623321,6.76315433,147.86,147.7,26.0]
[1745358623537,6.76315433,147.86,147.74,26.0]
[1745358623732,49.58725464,147.83,147.74,26.0]
[1745358623940,16.90927153,147.85,147.71,231.96]
[1745358624434,26.0,147.78,147.71,231.96]
[1745358624850,26.0,147.78,147.6,1.0]
[1745358624851,49.58725464,147.76,147.6,231.96]
[1745358625040,26.0,147.72,147.5,1.0442338]
[1745358625353,26.0,147.66,147.5,1.0442338]
[1745358625520,26.0,147.62,147.5,1.0442338]
[1745358625728,26.0,147.58,147.5,1.0442338]
[1745358626232,44.64964886,147.55,147.5,1.0442338]
[1745358626424,6.77690431,147.56,147.32,232.06]
[1745358626631,44.64964886,147.54,147.46,49.58725464]
[1745358626826,44.64964886,147.54,147.43,49.58725464]
[1745358627049,49.58725464,147.51,147.32,232.06]
[1745358627240,18.64964886,147.52,147.32,232.06]
[1745358627536,1.24915218,147.54,147.32,232.06]
[1745358627845,44.64964886,147.52,147.35,26.0]
[1745358628073,26.0,147.5,147.24,6.3244]
[1745358628257,44.64964886,147.5,147.29,232.06]
[1745358628438,18.64964886,147.5,147.32,26.0]
[1745358628756,18.64964886,147.5,147.34,26.0]
[1745358628921,23.72720493,147.51,147.3,18.64964886]
[1745358629122,18.64964886,147.5,147.29,232.06]
[1745358629342,23.72720493,147.51,147.3,1.0]
[1745358629628,23.72720493,147.51,147.36,26.0]
[1745358630164,16.94800352,147.51,147.31,18.64964886]
[1745358630325,16.94800352,147.51,147.43,49.58725464]
[1745358630731,16.94800352,147.51,147.38,26.0]
[1745358631429,18.64964886,147.5,147.36,26.0]
[1745358631628,18.64964886,147.5,147.3,18.64964886]
[1745358631859,18.64964886,147.5,147.36,26.0]
[1745358632053,6.78012068,147.49,147.36,26.0]
[1745358632253,18.64964886,147.48,147.36,26.0]
[1745358632542,18.64964886,147.48,147.35,26.0]
[1745358632743,6.78012068,147.49,147.41,49.58725464]
[1745358632949,18.64964886,147.48,147.26,34.84814685]
[1745358633347,18.64964886,147.48,147.34,26.0]
[1745358633551,44.64964886,147.48,147.3,18.64964886]
[1745358633761,18.64964886,147.48,147.3,18.64964886]
[1745358633939,18.64964886,147.48,147.33,26.0]
[1745358634145,18.64964886,147.46,147.3,18.64964886]
[1745358634347,18.64964886,147.46,147.27,18.64964886]
[1745358634552,18.64964886,147.46,147.39,49.58725464]
[1745358634843,18.64964886,147.46,147.32,26.0]
[1745358635776,16.9458279,147.53,147.33,44.64964886]
[1745358635948,6.7773636,147.55,147.48,49.58725464]
[1745358636161,33.86996739,147.63,147.47,232.4]
[1745358636366,1.24915218,147.63,147.47,232.4]
[1745358636556,50.83640682,147.63,147.54,49.58725464]
[1745358636751,6.77323218,147.64,147.56,49.58725464]
[1745358636950,7.9671,147.66,147.47,232.4]
[1745358636951,6.77002234,147.71,147.58,26.0]
[1745358637162,6.77002234,147.71,147.63,49.58725464]
[1745358637475,6.77002234,147.71,147.62,232.4]
[1745358637671,6.77002234,147.71,147.63,49.75461444]
[1745358638182,6.77002234,147.71,147.62,232.4]
[1745358638483,23.69507819,147.71,147.62,232.4]
[1745358638648,18.64964886,147.69,147.62,232.4]
[1745358638985,16.92505585,147.71,147.62,232.4]
[1745358639271,16.92505585,147.71,147.62,282.16617771]
[1745358639446,26.0,147.68,147.62,232.4]
[1745358639976,49.76617771,147.7,147.62,232.4]
[1745358640149,23.69828694,147.69,147.62,232.4]
[1745358640344,73.46446465,147.69,147.62,232.4]
[1745358640548,26.0,147.66,147.51,232.36]
[1745358640855,18.64964886,147.6,147.51,231.41794]
[1745358641045,26.0,147.55,147.51,231.41794]
[1745358641244,18.64964886,147.58,147.51,231.41794]
[1745358641478,44.64964886,147.58,147.51,231.41794]
[1745358641653,112.40767822,147.69,147.51,231.41794]
[1745358641853,44.64964886,147.62,147.51,231.41794]
[1745358642054,56.60644936,147.58,147.51,231.41794]
[1745358642561,26.0,147.55,147.51,231.41794]
[1745358642770,1.5849,147.59,147.51,231.41794]
[1745358642950,49.83044181,147.57,147.51,231.41794]
[1745358643276,26.0,147.57,147.51,231.41794]
[1745358643777,26.0,147.54,147.51,231.41794]
[1745358644484,1.5849,147.73,147.51,231.41794]
[1745358644777,49.83044181,147.63,147.51,231.41794]
[1745358645076,49.83044181,147.65,147.51,231.41794]
[1745358645273,1.0,147.72,147.51,231.41794]
[1745358645574,18.64964886,147.59,147.51,231.41794]
[1745358645875,18.64964886,147.56,147.51,231.41794]
[1745358646187,25.42763693,147.54,147.51,231.41794]
[1745358647563,18.64964886,147.51,147.41,232.42]
[1745358647780,68.48009067,147.51,147.41,232.42]
[1745358647984,18.64964886,147.51,147.41,232.42]
[1745358648192,18.64964886,147.51,147.44,49.83044181]
[1745358648486,18.64964886,147.51,147.41,232.42]
[1745358648667,18.64964886,147.51,147.44,49.83044181]
[1745358648860,18.64964886,147.51,147.41,232.42]
[1745358649367,18.64964886,147.51,147.32,1.0]
[1745358649569,18.64964886,147.51,147.33,232.42]
[1745358649570,25.42899375,147.51,147.33,232.42]
[1745358649774,44.64964886,147.51,147.37,26.0]
[1745358650272,44.64964886,147.51,147.44,49.83044181]
[1745358650596,26.0,147.51,147.37,26.0]
[1745358650771,75.25791363,147.54,147.34,18.64964886]
[1745358650967,26.0,147.51,147.43,49.83044181]
[1745358651183,18.64964886,147.5,147.43,49.83044181]
[1745358651486,26.0,147.51,147.33,239.20723675]
[1745358651487,26.0,147.51,147.41,49.83044181]
[1745358651690,44.64964886,147.51,147.43,49.83044181]
[1745358652189,94.48009067,147.51,147.41,49.83044181]
[1745358652570,44.64964886,147.51,147.36,26.0]
[1745358653094,44.64964886,147.51,147.42,49.83044181]
[1745358653383,94.48009067,147.51,147.41,49.83044181]
[1745358653585,94.48009067,147.51,147.33,232.42]
[1745358653586,56.61010282,147.5,147.34,26.0]
[1745358653783,56.61010282,147.5,147.4,49.83044181]
[1745358653982,6.77966101,147.5,147.41,49.83044181]
[1745358654182,6.77966101,147.5,147.4,232.5]
[1745358654873,6.77966101,147.5,147.4,282.33044181]
[1745358655080,1.5849,147.55,147.42,49.83044181]
[1745358655276,18.64964886,147.5,147.42,49.83044181]
[1745358655483,26.0,147.43,147.4,232.5]
[1745358656486,25.43068907,147.47,147.4,232.5]
[1745358656693,68.48009067,147.44,147.4,232.5]
[1745358656990,49.83044181,147.43,147.4,232.5]
[1745358657179,18.64964886,147.44,147.4,232.5]
[1745358657385,26.0,147.44,147.4,232.5]
[1745358657586,49.83044181,147.43,147.4,232.5]
[1745358657886,25.43264029,147.43,147.4,232.5]
[1745358658119,44.64964886,147.4,147.3,0.063]
[1745358658666,18.64964886,147.35,147.3,0.063]
[1745358659275,18.64964886,147.34,147.3,0.063]
[1745358659687,25.43703205,147.34,147.3,0.063]
[1745358660587,44.64964886,147.31,147.3,0.063]
[1745358660973,26.0,147.31,147.3,0.063]
[1745358661307,26.0,147.27,147.21,233.6442338]
[1745358661603,76.0613466,147.27,147.21,233.6442338]
[1745358661808,32.79063277,147.27,147.21,233.6442338]
[1745358662005,50.0613466,147.25,147.21,233.6442338]
[1745358662409,32.79063277,147.27,147.21,233.6442338]
[1745358662588,50.0613466,147.26,147.21,233.6442338]
[1745358662901,32.79063277,147.27,147.21,233.6442338]
[1745358663395,18.64964886,147.26,147.21,233.6442338]
[1745358663920,18.64964886,147.26,147.22,50.12915156]
[1745358664216,18.64964886,147.26,147.22,0.063]
[1745358664419,25.44041516,147.26,147.22,0.063]
[1745358665012,50.06615156,147.24,147.22,0.063]
[1745358665220,25.44041516,147.26,147.22,0.063]
[1745358665393,50.06615156,147.24,147.22,0.063]
[1745358665637,18.64964886,147.24,147.22,0.063]
[1745358665796,51.44174286,147.23,147.22,0.063]
[1745358665985,101.50789442,147.23,147.22,0.063]
[1745358666190,18.64964886,147.22,147.21,1.0442338]
[1745358666392,68.71580042,147.22,147.21,1.0442338]
[1745358666712,44.64964886,147.19,147.14,0.063]
[1745358666887,23.772329,147.23,147.14,0.063]
[1745358667086,18.64964886,147.19,147.14,0.063]
[1745358667405,18.64964886,147.15,147.14,0.063]
[1745358667723,18.64964886,147.14,147.11,232.78]
[1745358668005,50.06615156,147.12,147.07,0.063]
[1745358668184,18.64964886,147.12,147.07,0.063]
[1745358668705,76.06615156,147.1,147.07,0.063]
[1745358668912,26.0,147.1,147.07,0.063]
[1745358669215,26.0,147.08,147.01,232.86]
[1745358669402,18.64964886,147.07,147.01,232.86]
[1745358670009,56.86609716,147.06,147.01,232.86]
[1745358670192,68.71580042,147.02,147.0,0.063]
[1745358670506,18.64964886,147.02,147.0,0.063]
[1745358670889,26.0,146.99,146.92,1.0442338]
[1745358671093,26.0,146.99,146.95,50.06615156]
[1745358671319,18.64964886,147.02,146.92,1.0442338]
[1745358671612,18.64964886,146.94,146.92,1.0442338]
[1745358671808,44.64964886,146.97,146.92,1.0442338]
[1745358672015,13.45025834,147.01,146.92,1.0442338]
[1745358672198,32.80225834,147.01,146.92,1.0442338]
[1745358672402,6.80225834,147.01,146.92,1.0442338]
[1745358672593,18.64964886,147.0,146.92,1.0442338]
[1745358673600,6.80174184,147.03,146.92,1.0442338]
[1745358673801,18.64964886,147.02,146.96,50.06615156]
[1745358674007,6.79948323,147.07,146.95,233.12]
[1745358674518,18.64964886,147.06,146.95,233.12]
[1745358674897,18.64964886,147.06,146.99,50.06615156]
[1745358675102,18.64964886,147.06,146.95,233.12]
[1745358675300,6.648,147.1,147.01,50.06615156]
[1745358675501,6.79624847,147.14,146.97,26.0]
[1745358675826,26.91317688,147.18,146.97,32.80408938]
[1745358675827,23.78225121,147.17,146.97,32.80408938]
[1745358675990,23.78225121,147.17,146.97,26.0]
[1745358676188,23.78225121,147.17,146.97,32.80405397]
[1745358676499,23.78225121,147.17,146.95,233.12]
[1745358676721,18.64964886,147.13,146.95,233.12]
[1745358677020,18.64964886,147.13,146.92,1.0442338]
[1745358677021,6.648,147.01,146.92,1.0442338]
[1745358677590,50.06615156,146.97,146.92,1.0442338]
[1745358677806,6.80439451,146.97,146.92,1.0442338]
[1745358678004,26.0,146.98,146.92,51.11038536]
[1745358678207,1.43632644,147.05,146.92,1.0442338]
[1745358678208,6.80087051,147.04,146.92,1.0442338]
[1745358678518,18.64964886,147.03,146.92,1.0442338]
[1745358678723,44.64964886,147.01,146.92,1.0442338]
[1745358679125,18.64964886,147.0,146.92,1.0442338]
[1745358679812,26.0,146.97,146.92,1.0442338]
[1745358679996,18.64964886,146.96,146.92,1.0442338]
[1745358680201,94.71580042,146.93,146.92,1.0442338]
[1745358680734,44.64964886,146.93,146.92,1.0442338]
[1745358682230,101.52176244,146.93,146.92,1.0442338]
[1745358684732,51.45561088,146.93,146.92,1.0442338]
[1745358684925,101.52176244,146.93,146.92,1.0442338]
[1745358685108,101.52176244,146.93,146.86,0.03]
[1745358685424,50.06615156,146.87,146.86,0.03]
[1745358686013,56.87489398,146.87,146.86,0.03]
[1745358686324,82.87489398,146.87,146.86,0.03]
[1745358686715,26.0,146.87,146.86,0.03]
[1745358687104,82.87489398,146.87,146.86,0.03]
[1745358687422,56.87489398,146.87,146.86,0.03]
[1745358687929,25.45839128,146.87,146.86,0.03]
[1745358688152,75.52454284,146.87,146.86,0.03]
[1745358688441,18.64964886,146.83,146.77,0.03]
[1745358688625,50.06615156,146.79,146.77,0.03]
[1745358688934,18.64964886,146.83,146.77,0.03]
[1745358689116,50.06615156,146.81,146.77,0.03]
[1745358689438,50.06615156,146.79,146.77,0.03]
[1745358689601,6.81106116,146.82,146.77,0.03]
[1745358689802,50.06615156,146.8,146.77,0.03]
[1745358690198,50.06615156,146.78,146.77,0.03]
[1745358690403,44.64964886,146.81,146.77,0.03]
[1745358690626,68.71580042,146.78,146.77,0.03]
[1745358690906,18.64964886,146.78,146.77,0.03]
[1745358691209,68.71580042,146.78,146.77,0.03]
[1745358691418,25.46256615,146.78,146.77,0.03]
[1745358691604,101.52871771,146.78,146.77,0.03]
[1745358692014,51.46256615,146.78,146.77,0.03]
[1745358692946,6.81291729,146.78,146.77,0.03]
[1745358693150,56.87906885,146.78,146.77,0.03]
[1745358693451,75.52871771,146.78,146.77,0.03]
[1745358693628,56.87906885,146.78,146.77,0.03]
[1745358693832,101.52871771,146.78,146.77,0.03]
[1745358694024,26.0,146.71,146.7,233.38]
[1745358694224,1.43632644,146.77,146.7,233.38]
[1745358694440,50.06615156,146.74,146.7,233.38]
[1745358694641,50.06615156,146.73,146.7,233.38]
[1745358694838,18.64964886,146.75,146.7,233.38]
[1745358695449,25.46439606,146.75,146.7,233.38]
[1745358695948,6.8147472,146.75,146.7,233.38]
[1745358696134,56.88089876,146.75,146.7,233.38]
[1745358696335,32.81394328,146.76,146.7,233.38]
[1745358696729,50.06615156,146.74,146.7,233.38]
[1745358696928,32.813991,146.76,146.7,233.38]
[1745358697129,25.46266581,146.78,146.7,233.38]
[1745358697328,6.81384573,146.76,146.7,233.38]
[1745358698051,32.81334714,146.78,146.7,233.38]
[1745358698250,50.06615156,146.77,146.7,233.38]
[1745358698444,32.81334714,146.78,146.7,233.38]
[1745358698950,50.06615156,146.77,146.7,233.38]
[1745358699257,82.8794987,146.78,146.7,233.38]
[1745358699421,6.81334714,146.78,146.7,233.38]
[1745358700331,56.8794987,146.78,146.7,233.38]
[1745358700749,6.81334714,146.78,146.7,233.38]
[1745358701059,56.8794987,146.78,146.7,233.38]
[1745358701454,6.81334714,146.78,146.7,233.38]
[1745358701631,6.81245316,146.79,146.7,233.38]
[1745358701827,25.46210202,146.79,146.7,233.38]
[1745358702135,50.06615156,146.78,146.7,233.38]
[1745358702341,6.81245316,146.79,146.7,233.38]
[1745358702543,8.24735804,146.83,146.7,233.38]
[1745358702750,56.87718316,146.83,146.7,233.38]
[1745358702949,6.8110316,146.83,146.75,50.06615156]
[1745358703141,50.06615156,146.82,146.75,50.06615156]
[1745358703356,6.8110316,146.83,146.7,233.38]
[1745358703555,21.80321589,146.87,146.7,240.19655904]
[1745358703556,26.0,146.85,146.7,240.19655904]
[1745358703765,6.80832618,146.88,146.79,50.06615156]
[1745358704058,6.80688857,146.91,146.82,50.06615156]
[1745358704231,6.80688857,146.91,146.83,233.66]
[1745358704430,32.80688857,146.91,146.83,233.66]
[1745358704850,50.06615156,146.89,146.83,233.66]
[1745358705038,0.063,146.92,146.83,283.72615156]
[1745358705360,50.06615156,146.91,146.83,233.66]
[1745358705570,18.64964886,146.9,146.83,233.66]
[1745358705741,18.64964886,146.87,146.83,233.66]
[1745358705937,50.06615156,146.85,146.83,233.66]
[1745358706243,18.64964886,146.88,146.83,233.66]
[1745358706244,50.06615156,146.87,146.83,233.66]
[1745358706537,68.71580042,146.88,146.83,233.66]
[1745358706931,75.52417029,146.88,146.83,233.66]
[1745358707132,1.21272644,146.91,146.83,233.66]
[1745358707355,25.45708972,146.9,146.83,233.66]
[1745358707670,0.063,146.92,146.83,283.72615156]
[1745358707963,0.063,146.92,146.85,50.06615156]
[1745358708134,0.063,146.92,146.83,233.66]
[1745358708330,0.063,146.92,146.85,50.06615156]
[1745358708635,0.063,146.92,146.83,240.47055569]
[1745358708840,0.063,146.92,146.87,50.06615156]
[1745358709455,0.063,146.92,146.83,233.66]
[1745358709652,0.063,146.92,146.85,50.06615156]
[1745358710337,0.063,146.92,146.83,233.66]
[1745358710537,0.063,146.92,146.86,50.06615156]
[1745358711030,0.063,146.92,146.83,233.66]
[1745358711436,0.063,146.92,146.87,50.06615156]
[1745358711860,0.063,146.92,146.83,233.66]
[1745358712243,0.063,146.92,146.86,50.06615156]
[1745358712437,0.063,146.92,146.83,233.66]
[1745358712841,0.063,146.92,146.87,50.06615156]
[1745358713334,0.063,146.92,146.88,50.06615156]